Workbook

Sheet Tabelle1
A1: AL | B1: INF | C1: WW | D1: Zins | M1: Update
A2: 4.09 | B2: 1.61 | C2: 1.15 | D2: 0.75 | M2: 2023-02-23
A3: 4.09 | B3: 1.63 | C3: 1.18 | D3: 0.75
A4: 4.00 | B4: 1.64 | C4: 1.12 | D4: 0.75
A5: 4.03 | B5: 1.68 | C5: 1.14 | D5: 0.75
A6: 3.98 | B6: 1.70 | C6: 1.13 | D6: 0.75
A7: 3.95 | B7: 1.74 | C7: 1.07 | D7: 0.75
A8: 3.96 | B8: 1.73 | C8: 1.08 | D8: 0.75
A9: 3.99 | B9: 1.79 | C9: 1.14 | D9: 0.75
A10: 3.94 | B10: 1.83 | C10: 1.20 | D10: 1.00
A11: 3.85 | B11: 1.87 | C11: 1.12 | D11: 1.00
A12: 3.83 | B12: 1.85 | C12: 1.05 | D12: 1.00
A13: 3.81 | B13: 1.86 | C13: 0.98 | D13: 1.00 | K13: Aktuell
A14: 3.73 | B14: 1.88 | C14: 0.97 | D14: 1.00 | K14: =D101/100 -> 1.50%
A15: 3.76 | B15: 1.85 | C15: 0.99 | D15: 1.00
A16: 3.81 | B16: 1.86 | C16: 1.07 | D16: 1.00
A17: 3.80 | B17: 1.96 | C17: 1.01 | D17: 1.00
A18: 3.84 | B18: 1.89 | C18: 1.09 | D18: 1.00
A19: 3.83 | B19: 1.88 | C19: 1.18 | D19: 1.00
A20: 3.80 | B20: 1.91 | C20: 1.21 | D20: 1.00
A21: 3.81 | B21: 1.93 | C21: 1.23 | D21: 1.25
A22: 3.77 | B22: 1.90 | C22: 1.13 | D22: 1.25
A23: 3.81 | B23: 1.92 | C23: 1.10 | D23: 1.25
A24: 3.81 | B24: 1.89 | C24: 1.14 | D24: 1.25
A25: 3.77 | B25: 1.84 | C25: 1.17 | D25: 1.25
A26: 3.79 | B26: 1.84 | C26: 1.26 | D26: 1.25
A27: 3.70 | B27: 1.89 | C27: 1.23 | D27: 1.25
A28: 3.68 | B28: 1.89 | C28: 1.27 | D28: 1.25
A29: 3.64 | B29: 1.85 | C29: 1.32 | D29: 1.25
A30: 3.61 | B30: 1.85 | C30: 1.28 | D30: 1.25
A31: 3.55 | B31: 1.80 | C31: 1.33 | D31: 1.25
A32: 3.46 | B32: 1.82 | C32: 1.34 | D32: 1.25
A33: 3.53 | B33: 1.78 | C33: 1.37 | D33: 1.25
A34: 3.59 | B34: 1.87 | C34: 1.31 | D34: 1.25
A35: 3.55 | B35: 1.83 | C35: 1.29 | D35: 1.25
A36: 3.55 | B36: 1.73 | C36: 1.35 | D36: 1.25
A37: 3.56 | B37: 1.71 | C37: 1.29 | D37: 1.25
A38: 3.56 | B38: 1.73 | C38: 1.30 | D38: 1.25
A39: 3.58 | B39: 1.74 | C39: 1.33 | D39: 1.25
A40: 3.56 | B40: 1.76 | C40: 1.31 | D40: 1.25
A41: 3.62 | B41: 1.77 | C41: 1.31 | D41: 1.25
A42: 3.66 | B42: 1.77 | C42: 1.31 | D42: 1.25
A43: 3.66 | B43: 1.70 | C43: 1.32 | D43: 1.25
A44: 3.71 | B44: 1.65 | C44: 1.38 | D44: 1.25
A45: 3.64 | B45: 1.66 | C45: 1.38 | D45: 1.25
A46: 3.64 | B46: 1.64 | C46: 1.46 | D46: 1.25
A47: 3.62 | B47: 1.69 | C47: 1.39 | D47: 1.25
A48: 3.62 | B48: 1.74 | C48: 1.39 | D48: 1.25
A49: 3.60 | B49: 1.81 | C49: 1.41 | D49: 1.25
A50: 3.61 | B50: 1.77 | C50: 1.45 | D50: 1.25
A51: 3.58 | B51: 1.70 | C51: 1.39 | D51: 1.25
A52: 3.63 | B52: 1.70 | C52: 1.43 | D52: 1.25
A53: 3.66 | B53: 1.69 | C53: 1.41 | D53: 1.25
A54: 3.67 | B54: 1.62 | C54: 1.43 | D54: 1.25
A55: 3.66 | B55: 1.61 | C55: 1.36 | D55: 1.25
A56: 3.67 | B56: 1.57 | C56: 1.33 | D56: 0.50
A57: 3.62 | B57: 1.56 | C57: 1.34 | D57: 0.50
A58: 3.66 | B58: 1.54 | C58: 1.37 | D58: 0.50
A59: 3.63 | B59: 1.60 | C59: 1.38 | D59: 0.50
A60: 3.67 | B60: 1.60 | C60: 1.32 | D60: 0.50
A61: 3.60 | B61: 1.64 | C61: 1.37 | D61: 0.50
A62: 3.59 | B62: 1.55 | C62: 1.40 | D62: 0.50
A63: 3.60 | B63: 1.52 | C63: 1.43 | D63: 0.50
A64: 3.62 | B64: 1.56 | C64: 1.42 | D64: 0.50
A65: 3.60 | B65: 1.58 | C65: 1.36 | D65: 0.50
A66: 3.62 | B66: 1.52 | C66: 1.35 | D66: 0.50
A67: 3.63 | B67: 1.48 | C67: 1.34 | D67: 0.50
A68: 3.60 | B68: 1.46 | C68: 1.38 | D68: 0.50
A69: 3.54 | B69: 1.40 | C69: 1.39 | D69: 0.50
A70: 3.59 | B70: 1.41 | C70: 1.47 | D70: 0.50
A71: 3.53 | B71: 1.39 | C71: 1.48 | D71: 0.50
A72: 3.50 | B72: 1.42 | C72: 1.53 | D72: 0.50
A73: 3.45 | B73: 1.41 | C73: 1.51 | D73: 0.50
A74: 3.46 | B74: 1.41 | C74: 1.52 | D74: 0.50
A75: 3.52 | B75: 1.48 | C75: 1.55 | D75: 0.50
A76: 3.50 | B76: 1.49 | C76: 1.55 | D76: 0.50
A77: 3.50 | B77: 1.47 | C77: 1.59 | D77: 0.50
A78: 3.48 | B78: 1.56 | C78: 1.67 | D78: 0.50
A79: 3.44 | B79: 1.65 | C79: 1.62 | D79: 0.50
A80: 3.44 | B80: 1.71 | C80: 1.64 | D80: 0.75
A81: 3.42 | B81: 1.69 | C81: 1.74 | D81: 0.75
A82: 3.39 | B82: 1.74 | C82: 1.79 | D82: 1.00
A83: 3.44 | B83: 1.76 | C83: 1.77 | D83: 1.00
A84: 3.44 | B84: 1.77 | C84: 1.74 | D84: 1.25
A85: 3.47 | B85: 1.75 | C85: 1.75 | D85: 1.25
A86: 3.48 | B86: 1.77 | C86: 1.82 | D86: 1.25
A87: 3.53 | B87: 1.79 | C87: 1.80 | D87: 1.50
A88: 3.50 | B88: 1.77 | C88: 1.75 | D88: 1.50
A89: 3.50 | B89: 1.77 | C89: 1.72 | D89: 1.50
A90: 3.45 | B90: 1.81 | C90: 1.76 | D90: 1.50
A91: 3.38 | B91: 1.77 | C91: 1.75 | D91: 1.50
A92: 3.34 | B92: 1.76 | C92: 1.73 | D92: 1.50
A93: 3.41 | B93: 1.75 | C93: 1.74 | D93: 1.50
A94: 3.33 | B94: 1.72 | C94: 1.76 | D94: 1.50
A95: 3.32 | B95: 1.77 | C95: 1.77 | D95: 1.50
A96: 3.30 | B96: 1.79 | C96: 1.74 | D96: 1.50
A97: 3.32 | B97: 1.82 | C97: 1.80 | D97: 1.50
A98: 3.33 | B98: 1.83 | C98: 1.84 | D98: 1.50
A99: 3.31 | B99: 1.85 | C99: 1.82 | D99: 1.50
A100: 3.30 | B100: 1.83 | C100: 1.81 | D100: 1.50
A101: =A100+A109-B104-C104 -> 3.22 | B101: =B100+B109+B111-A104+C104 -> 1.91 | C101: =C100+C109-A104+B104-D104 -> 1.82 | D101: 1.50
A103: =SUM(A96:A100)/5 -> 3.31 | B103: =SUM(B96:B100)/5 -> 1.82 | C103: 1.80 | D103: 1.50
A104: =(A100-A103)/$C$106 -> -0.001 | B104: =(B100-B103)/$C$106 -> 0.000 | C104: 0.001 | D104: 0.000
A106: neu | B106: reduzieren | C106: 10
A107: =ROUND((RAND()/$C$106),2)*-1 -> -0.10 | B107: =ROUND((RAND()/$C$106),2)*-1 -> -0.01 | C107: -0.01
A108: =ROUND((RAND()/$C$106),2) -> 0.02 | B108: =ROUND((RAND()/$C$106),2) -> 0.09 | C108: =ROUND((RAND()/$C$106),2) -> 0.01
A109: =A107+A108+D109+((D100-C100)/100) -> -0.08 | B109: =B107+B108-D109+((C100+B100-A100)/100) -> 0.08 | C109: =C107+C108-D109+((B100-D100)/100) -> 0.00 | D109: =D101/1000 -> 0.002
A111: Zusatzfaktor | B111: 0.00 | D111: =D101+0.25 -> 1.75
D112: =D101-0.25 -> 1.25
A120: AL | B120: INF | C120: WW | D120: Zins
A121: 4.57 | B121: 1.56 | C121: 0.67 | D121: 0.50
A122: 4.61 | B122: 1.49 | C122: 0.71 | D122: 0.50
A123: 4.59 | B123: 1.52 | C123: 0.67 | D123: 0.50
A124: 4.68 | B124: 1.51 | C124: 0.67 | D124: 0.50
A125: 4.63 | B125: 1.54 | C125: 0.60 | D125: 0.50
A126: 4.69 | B126: 1.49 | C126: 0.67 | D126: 0.50
A127: 4.70 | B127: 1.53 | C127: 0.71 | D127: 0.50
A128: 4.71 | B128: 1.55 | C128: 0.71 | D128: 0.50
A129: 4.67 | B129: 1.59 | C129: 0.73 | D129: 0.50
A130: 4.67 | B130: 1.62 | C130: 0.76 | D130: 0.50
A131: 4.71 | B131: 1.65 | C131: 0.86 | D131: 0.50
A132: 4.69 | B132: 1.58 | C132: 0.93 | D132: 0.50
A133: 4.67 | B133: 1.60 | C133: 0.92 | D133: 0.50
A134: 4.61 | B134: 1.55 | C134: 0.95 | D134: 0.50
A135: 4.62 | B135: 1.52 | C135: 0.94 | D135: 0.50
A136: 4.66 | B136: 1.49 | C136: 0.95 | D136: 0.50
A137: 4.68 | B137: 1.50 | C137: 0.95 | D137: 0.50
A138: 4.68 | B138: 1.45 | C138: 0.98 | D138: 0.50
A139: 4.76 | B139: 1.43 | C139: 0.97 | D139: 0.50
A140: 4.68 | B140: 1.37 | C140: 0.93 | D140: 0.50
A141: 4.70 | B141: 1.36 | C141: 0.94 | D141: 0.50
A142: 4.69 | B142: 1.38 | C142: 0.92 | D142: 0.50
A143: 4.69 | B143: 1.46 | C143: 0.93 | D143: 0.50
A144: 4.71 | B144: 1.48 | C144: 0.99 | D144: 0.50
A145: 4.65 | B145: 1.47 | C145: 0.96 | D145: 0.50
A146: 4.59 | B146: 1.49 | C146: 1.00 | D146: 0.50
A147: 4.61 | B147: 1.54 | C147: 1.03 | D147: 0.50
A148: 4.58 | B148: 1.53 | C148: 1.04 | D148: 0.50
A149: 4.48 | B149: 1.52 | C149: 0.99 | D149: 0.50
A150: 4.44 | B150: 1.56 | C150: 1.06 | D150: 0.50
A151: 4.47 | B151: 1.58 | C151: 1.03 | D151: 0.50
A152: 4.41 | B152: 1.63 | C152: 1.08 | D152: 0.50
A153: 4.34 | B153: 1.61 | C153: 1.18 | D153: 0.50
A154: 4.30 | B154: 1.66 | C154: 1.19 | D154: 0.75
A155: 4.30 | B155: 1.65 | C155: 1.19 | D155: 0.75
A156: 4.22 | B156: 1.67 | C156: 1.19 | D156: 0.75
A157: 4.15 | B157: 1.64 | C157: 1.14 | D157: 0.75
A158: 4.17 | B158: 1.58 | C158: 1.12 | D158: 0.75
A159: 4.21 | B159: 1.66 | C159: 1.09 | D159: 0.75
A160: 4.23 | B160: 1.66 | C160: 1.09 | D160: 0.75
A161: 4.28 | B161: 1.58 | C161: 1.07 | D161: 0.75
A162: 4.22 | B162: 1.61 | C162: 1.09 | D162: 0.75
A163: 4.26 | B163: 1.66 | C163: 1.07 | D163: 0.75
A164: 4.23 | B164: 1.55 | C164: 1.05 | D164: 0.75
A165: 4.20 | B165: 1.63 | C165: 1.05 | D165: 0.75
A166: 4.15 | B166: 1.64 | C166: 1.00 | D166: 0.75
A167: 4.10 | B167: 1.64 | C167: 1.06 | D167: 0.75
A168: 4.08 | B168: 1.65 | C168: 1.08 | D168: 0.75
A169: 4.09 | B169: 1.61 | C169: 1.15 | D169: 0.75
A170: 4.09 | B170: 1.63 | C170: 1.18 | D170: 0.75
A171: 4.00 | B171: 1.64 | C171: 1.12 | D171: 0.75
A172: 4.03 | B172: 1.68 | C172: 1.14 | D172: 0.75
A173: 3.98 | B173: 1.70 | C173: 1.13 | D173: 0.75
A174: 3.95 | B174: 1.74 | C174: 1.07 | D174: 0.75
A175: 3.96 | B175: 1.73 | C175: 1.08 | D175: 0.75
A176: 3.99 | B176: 1.79 | C176: 1.14 | D176: 0.75
A177: 3.94 | B177: 1.83 | C177: 1.20 | D177: 1.00
A178: 3.85 | B178: 1.87 | C178: 1.12 | D178: 1.00
A179: 3.83 | B179: 1.85 | C179: 1.05 | D179: 1.00
A180: 3.81 | B180: 1.86 | C180: 0.98 | D180: 1.00
A181: 3.73 | B181: 1.88 | C181: 0.97 | D181: 1.00
A182: 3.76 | B182: 1.85 | C182: 0.99 | D182: 1.00
A183: 3.81 | B183: 1.86 | C183: 1.07 | D183: 1.00
A184: 3.80 | B184: 1.96 | C184: 1.01 | D184: 1.00
A185: 3.84 | B185: 1.89 | C185: 1.09 | D185: 1.00
A186: 3.83 | B186: 1.88 | C186: 1.18 | D186: 1.00
A187: 3.80 | B187: 1.91 | C187: 1.21 | D187: 1.00
A188: 3.81 | B188: 1.93 | C188: 1.23 | D188: 1.25
A189: 3.77 | B189: 1.90 | C189: 1.13 | D189: 1.25
A190: 3.81 | B190: 1.92 | C190: 1.10 | D190: 1.25
A191: 3.81 | B191: 1.89 | C191: 1.14 | D191: 1.25
A192: 3.77 | B192: 1.84 | C192: 1.17 | D192: 1.25
A193: 3.79 | B193: 1.84 | C193: 1.26 | D193: 1.25
A194: 3.70 | B194: 1.89 | C194: 1.23 | D194: 1.25
A195: 3.68 | B195: 1.89 | C195: 1.27 | D195: 1.25
A196: 3.64 | B196: 1.85 | C196: 1.32 | D196: 1.25
A197: 3.61 | B197: 1.85 | C197: 1.28 | D197: 1.25
A198: 3.55 | B198: 1.80 | C198: 1.33 | D198: 1.25
A199: 3.46 | B199: 1.82 | C199: 1.34 | D199: 1.25
A200: 3.53 | B200: 1.78 | C200: 1.37 | D200: 1.25
A201: 3.59 | B201: 1.87 | C201: 1.31 | D201: 1.25
A202: 3.55 | B202: 1.83 | C202: 1.29 | D202: 1.25
A203: 3.55 | B203: 1.73 | C203: 1.35 | D203: 1.25
A204: 3.56 | B204: 1.71 | C204: 1.29 | D204: 1.25
A205: 3.56 | B205: 1.73 | C205: 1.30 | D205: 1.25
A206: 3.58 | B206: 1.74 | C206: 1.33 | D206: 1.25
A207: 3.56 | B207: 1.76 | C207: 1.31 | D207: 1.25
A208: 3.62 | B208: 1.77 | C208: 1.31 | D208: 1.25
A209: 3.66 | B209: 1.77 | C209: 1.31 | D209: 1.25
A210: 3.66 | B210: 1.70 | C210: 1.32 | D210: 1.25
... 10 more rows
